bitfinex/quotes_BTCUSD_20241229
["timestamp","ask_amount","ask_price","bid_price","bid_amount"]
[1735505073970,8.53e-05,93839.0,93838.0,0.73308303]
[1735505074221,8.53e-05,93839.0,93838.0,0.74208303]
[1735505074350,8.53e-05,93839.0,93838.0,0.74608303]
[1735505077044,8.53e-05,93839.0,93838.0,0.85006935]
[1735505078025,8.53e-05,93839.0,93838.0,0.84106935]
[1735505078231,8.53e-05,93839.0,93838.0,0.83706935]
[1735505078858,0.03940421,93871.0,93842.0,0.0753]
[1735505079063,0.03940421,93871.0,93844.0,0.0753]
[1735505079254,0.03940421,93871.0,93846.0,0.0753]
[1735505079397,0.03940421,93871.0,93849.0,0.0469]
[1735505079747,0.03940421,93871.0,93868.0,0.0753]
[1735505079949,0.00351129,93870.0,93868.0,0.0753]
[1735505080086,0.03940421,93871.0,93868.0,0.0753]
[1735505080287,0.00351129,93869.0,93868.0,0.0753]
[1735505080522,5.085e-05,93869.0,93868.0,0.0753]
[1735505080955,5.085e-05,93869.0,93868.0,0.08332139]
[1735505081157,5.085e-05,93869.0,93868.0,0.08632139]
[1735505081298,5.085e-05,93869.0,93868.0,0.08332139]
[1735505081722,5.085e-05,93869.0,93868.0,0.08632139]
[1735505082104,5.085e-05,93869.0,93868.0,0.0783]
[1735505084288,5.085e-05,93869.0,93868.0,0.08321392]
[1735505085811,0.04254205,93888.0,93870.0,0.00491392]
[1735505086259,0.00396698,93887.0,93870.0,0.00491392]
[1735505086398,0.04254205,93888.0,93870.0,0.00491392]
[1735505086604,0.00396698,93886.0,93871.0,0.01295139]
[1735505086808,0.04254205,93888.0,93871.0,0.01295139]
[1735505087236,0.04354205,93888.0,93871.0,0.01295139]
[1735505087433,0.0206,93897.0,93877.0,0.00491392]
[1735505088077,0.004,93888.0,93877.0,0.00491392]
[1735505088270,0.13545864,93904.0,93877.0,0.00491392]
[1735505088470,0.01671326,93899.0,93877.0,0.00506645]
[1735505088608,0.004,93897.0,93877.0,0.00606645]
[1735505089177,0.001,93897.0,93877.0,0.00606645]
[1735505089382,0.161555,93896.0,93877.0,0.00606645]
[1735505089722,0.001,93897.0,93877.0,0.00606645]
[1735505090084,0.119842,93896.0,93877.0,0.00606645]
[1735505090303,0.119842,93896.0,93877.0,0.00506645]
[1735505090538,0.135882,93897.0,93877.0,0.00506645]
[1735505090738,0.309129,93897.0,93877.0,0.00506645]
[1735505091291,0.120909,93897.0,93877.0,0.00506645]
[1735505091494,0.135879,93898.0,93877.0,0.00606645]
[1735505091813,0.381323,93898.0,93877.0,0.00506645]
[1735505092023,0.266353,93897.0,93877.0,0.00606645]
[1735505092402,0.266353,93897.0,93877.0,0.00115253]
[1735505093384,0.266353,93897.0,93877.0,0.00015253]
[1735505093633,0.00351567,93896.0,93877.0,0.00015253]
[1735505093881,1.455551,93895.0,93877.0,0.00115253]
[1735505094103,1.45906817,93895.0,93877.0,0.00015253]
[1735505094268,1.388173,93894.0,93877.0,0.00015253]
[1735505094472,1.185003,93894.0,93877.0,0.00115253]
[1735505094656,1.11579817,93893.0,93877.0,0.00015253]
[1735505094864,1.049186,93892.0,93877.0,0.00015253]
[1735505095045,1.049186,93892.0,93877.0,0.00115253]
[1735505095246,0.00351717,93891.0,93877.0,0.00015253]
[1735505095460,1.05270317,93891.0,93877.0,0.00015253]
[1735505095659,0.279194,93890.0,93878.0,0.0803]
[1735505096089,0.00351717,93889.0,93878.0,0.0803]
[1735505096368,0.0454853,93900.0,93878.0,0.0803]
[1735505096369,0.2824,93898.0,93878.0,0.0803]
[1735505096612,0.270638,93897.0,93878.0,0.0803]
[1735505096806,0.00351717,93897.0,93878.0,0.0803]
[1735505097025,0.270638,93896.0,93878.0,0.0803]
[1735505097223,0.00351717,93897.0,93878.0,0.0803]
[1735505097426,0.0454853,93900.0,93878.0,0.0803]
[1735505097632,0.367926,93899.0,93878.0,0.0803]
[1735505098453,0.367926,93899.0,93878.0,0.0813]
[1735505098625,0.367926,93899.0,93878.0,0.0803]
[1735505099165,0.01115632,93898.0,93878.0,0.0803]
[1735505099373,0.401076,93897.0,93878.0,0.09346665]
[1735505100115,0.401076,93897.0,93878.0,0.0813]
[1735505100319,0.401076,93897.0,93878.0,0.0803]
[1735505100714,0.401076,93897.0,93878.0,0.0813]
[1735505104976,0.01115632,93898.0,93878.0,0.0813]
[1735505105182,0.449198,93897.0,93878.0,0.0813]
[1735505105605,0.01115632,93898.0,93878.0,0.0813]
[1735505105925,0.252437,93897.0,93878.0,0.0813]
[1735505106349,0.247437,93896.0,93878.0,0.0813]
[1735505106546,0.237466,93897.0,93878.0,0.0813]
[1735505106744,0.254575,93896.0,93878.0,0.0813]
[1735505106900,0.01115632,93898.0,93879.0,0.0768]
[1735505107116,0.254575,93897.0,93879.0,0.0768]
[1735505107697,0.237466,93897.0,93879.0,0.0768]
[1735505108103,0.237466,93897.0,93879.0,0.0778]
[1735505108304,0.237466,93897.0,93879.0,0.0768]
[1735505108736,0.0048,93891.0,93870.0,0.07200152]
[1735505108961,1.094134,93890.0,93870.0,0.06876631]
[1735505109189,0.885602,93890.0,93870.0,0.06876631]
[1735505109515,0.83748,93890.0,93870.0,0.06876631]
[1735505109697,0.893091,93890.0,93870.0,0.06876631]
[1735505109932,0.83748,93890.0,93870.0,0.06876631]
[1735505110140,1.934567,93890.0,93870.0,0.06876631]
[1735505110309,0.847111,93889.0,93870.0,0.06876631]
[1735505112723,0.847111,93889.0,93870.0,0.06592358]
[1735505112913,0.847111,93889.0,93870.0,0.06243993]
[1735505113127,1.1346456,93889.0,93870.0,0.06243993]
[1735505113324,1.215017,93888.0,93870.0,0.06243993]
[1735505113728,1.215017,93888.0,93870.0,0.06261053]
[1735505114384,1.8863865,93889.0,93870.0,0.06261053]
[1735505114584,1.83211,93888.0,93870.0,0.06261053]
[1735505114715,1.83311,93888.0,93870.0,0.06261053]
[1735505114940,1.594723,93887.0,93870.0,0.06261053]
[1735505115131,1.326282,93886.0,93870.0,0.06261053]
[1735505115310,0.001,93888.0,93870.0,0.06261053]
[1735505115311,1.49205,93887.0,93870.0,0.06261053]
[1735505115516,1.124142,93887.0,93870.0,0.06261053]
[1735505115750,1.162646,93887.0,93870.0,0.06261053]
[1735505115948,1.043928,93887.0,93870.0,0.06261053]
[1735505117002,0.2875346,93886.0,93870.0,0.06261053]
[1735505117200,0.630018,93885.0,93870.0,0.06261053]
[1735505117430,0.01671378,93883.0,93870.0,0.06261053]
[1735505117643,0.452483,93882.0,93871.0,0.00626105]
[1735505117848,0.01671378,93883.0,93871.0,0.00626105]
[1735505119585,0.01671378,93883.0,93870.0,0.06261053]
[1735505119846,0.01671378,93883.0,93871.0,0.0798]
[1735505120483,0.01671378,93883.0,93872.0,0.0484]
[1735505120637,0.01671378,93883.0,93873.0,0.0798]
[1735505122241,0.01671378,93883.0,93878.0,0.0806]
[1735505123199,0.2875346,93888.0,93886.0,0.1278]
[1735505123393,0.2875346,93889.0,93888.0,0.00491392]
[1735505123622,0.2875346,93889.0,93888.0,0.08551392]
[1735505124409,1.065,93890.0,93888.0,0.08551392]
[1735505124581,1.065,93890.0,93888.0,0.08751392]
[1735505124988,1.065,93890.0,93889.0,0.00491392]
[1735505125214,0.77522696,93890.0,93889.0,0.08551392]
[1735505126459,0.50985094,93890.0,93889.0,0.08551392]
[1735505126859,0.31430898,93890.0,93889.0,0.08551392]
[1735505127461,0.31430898,93890.0,93889.0,0.10372947]
[1735505127674,0.31430898,93890.0,93889.0,0.08551392]
[1735505127860,8.53e-05,93898.0,93890.0,0.00491392]
[1735505128162,0.00023775,93898.0,93891.0,0.0806]
[1735505129713,0.00023775,93898.0,93897.0,0.00491392]
[1735505129923,0.00023775,93898.0,93897.0,0.13431392]
[1735505131294,0.00023775,93898.0,93897.0,0.68561392]
[1735505131564,0.01120851,93937.0,93917.0,0.00491392]
[1735505131775,0.00050833,93928.0,93917.0,0.00491392]
[1735505132003,0.00050833,93928.0,93918.0,0.0797]
[1735505132559,0.00050833,93928.0,93927.0,0.55121392]
[1735505132939,0.00050833,93928.0,93927.0,0.626]
[1735505133761,0.31580833,93928.0,93927.0,0.626]
[1735505136213,0.31580833,93928.0,93919.0,0.0797]
[1735505136418,0.31580833,93928.0,93908.0,0.0797]
[1735505136626,2.19814702,93927.0,93908.0,0.0797]
[1735505136826,2.197819,93926.0,93908.0,0.0797]
[1735505137039,2.197819,93926.0,93898.0,0.0497]
[1735505137040,2.29290508,93926.0,93899.0,0.0797]
[1735505137262,2.297819,93925.0,93899.0,0.0797]
[1735505137441,2.197819,93924.0,93899.0,0.0797]
[1735505137667,0.0167067,93920.0,93899.0,0.0797]
[1735505137870,1.478693,93919.0,93899.0,0.0797]
[1735505138269,1.305511,93919.0,93899.0,0.0797]
[1735505138448,0.0147,93918.0,93891.0,0.5]
[1735505138649,0.932394,93917.0,93899.0,0.001]
[1735505139059,1.197545,93916.0,93899.0,0.001]
[1735505139278,1.083136,93915.0,93899.0,0.001]
[1735505139500,1.232817,93917.0,93899.0,0.001]
[1735505139907,1.232817,93917.0,93905.0,0.0001706]
[1735505140402,0.581691,93916.0,93905.0,0.0001706]
[1735505141598,0.586691,93916.0,93905.0,0.0001706]
[1735505141811,0.946274,93915.0,93905.0,0.0001706]
[1735505141967,0.599868,93915.0,93905.0,0.0001706]
[1735505142392,0.253463,93915.0,93905.0,0.0001706]
[1735505143021,0.003,93917.0,93905.0,0.0001706]
[1735505143222,0.0167067,93920.0,93906.0,0.0797]
[1735505143223,0.005,93915.0,93906.0,0.0797]
[1735505143655,0.008,93915.0,93907.0,0.0497]
[1735505144074,0.003,93915.0,93907.0,0.0497]
[1735505144475,0.008,93915.0,93907.0,0.0497]
[1735505144921,0.003,93915.0,93907.0,0.0497]
[1735505145073,0.003,93915.0,93906.0,0.0797]
[1735505145292,0.31580833,93928.0,93906.0,0.0797]
[1735505145488,0.003,93915.0,93906.0,0.0797]
[1735505145743,0.003,93915.0,93906.0,0.08461392]
[1735505145942,0.003,93915.0,93912.0,0.13001392]
[1735505146085,0.31580833,93928.0,93913.0,0.00491392]
[1735505146420,0.001,93915.0,93913.0,0.00491392]
[1735505147201,0.31580833,93928.0,93913.0,0.00491392]
[1735505148285,0.01670591,93926.0,93913.0,0.003]
[1735505148637,0.01670591,93926.0,93913.0,0.00791392]
[1735505149484,0.01170591,93926.0,93913.0,0.00791392]
[1735505149686,0.01170591,93926.0,93913.0,0.00471392]
[1735505149885,0.01370591,93926.0,93913.0,0.00471392]
[1735505150538,0.01670591,93926.0,93914.0,0.5463]
[1735505152294,0.01470591,93926.0,93914.0,0.5463]
[1735505152707,0.01370591,93926.0,93914.0,0.5463]
[1735505152901,0.01670591,93926.0,93914.0,0.5463]
[1735505153525,0.01670591,93926.0,93913.0,0.0001706]
[1735505154175,0.005,93926.0,93913.0,0.0001706]
[1735505154389,1.478547,93925.0,93913.0,0.0001706]
[1735505155577,1.164272,93925.0,93913.0,0.0001706]
[1735505155780,1.151444,93925.0,93913.0,0.0001706]
[1735505156581,1.153444,93925.0,93913.0,0.0001706]
[1735505156786,1.317146,93924.0,93913.0,0.0001706]
[1735505158544,0.335752,93924.0,93913.0,0.0001706]
[1735505158683,0.421277,93924.0,93913.0,0.0001706]
[1735505158889,0.0167065,93922.0,93912.0,0.0780706]
[1735505159878,0.0167065,93922.0,93905.0,0.0001706]
[1735505160256,0.0177065,93922.0,93905.0,0.0001706]
[1735505160467,2.197819,93921.0,93905.0,0.0001706]
[1735505162448,2.170378,93921.0,93905.0,0.0001706]
[1735505162651,0.864996,93920.0,93905.0,0.0001706]
[1735505162849,1.439129,93921.0,93905.0,0.0001706]
[1735505163078,1.447129,93921.0,93905.0,0.0011706]
[1735505163419,0.012,93921.0,93908.0,0.0768]
[1735505163949,0.00557076,93926.0,93908.0,0.0768]
[1735505164151,0.004,93921.0,93918.0,0.5463]
[1735505164354,0.004,93921.0,93907.0,0.0452]
[1735505164355,0.011,93921.0,93920.0,0.00471392]
[1735505164488,0.011,93921.0,93920.0,0.15982538]
[1735505165332,0.007,93921.0,93920.0,0.15982538]
[1735505165680,0.007,93921.0,93920.0,0.12671392]
[1735505165681,0.011,93921.0,93920.0,0.12671392]
[1735505166107,0.31580833,93928.0,93920.0,0.59601392]
[1735505166345,0.31580833,93928.0,93921.0,0.0688]
[1735505167971,0.31580833,93928.0,93921.0,0.0686]
[1735505168198,0.23770833,93928.0,93927.0,0.04991392]
[1735505168536,0.18770833,93928.0,93927.0,0.04991392]
[1735505169043,0.18870833,93928.0,93927.0,0.04991392]
[1735505169314,0.001,93928.0,93927.0,0.59601392]
[1735505169678,0.35587748,93959.0,93927.0,0.59601392]
[1735505169883,0.00023774,93937.0,93936.0,0.5461]
[1735505170086,0.00023774,93937.0,93936.0,0.54961392]
[1735505171044,0.00023774,93937.0,93936.0,0.62641392]
[1735505171247,0.00023774,93937.0,93936.0,0.62941392]
[1735505172294,0.00023774,93937.0,93936.0,0.62921392]
[1735505172497,0.33917497,93959.0,93938.0,0.04793307]
[1735505172742,0.33917497,93959.0,93938.0,0.12473307]
[1735505172928,0.33917497,93959.0,93938.0,0.12579737]
[1735505173270,0.33917497,93959.0,93938.0,0.22978369]
[1735505173470,0.33917497,93959.0,93938.0,0.22871939]
[1735505173683,8.53e-05,93963.0,93938.0,0.32234969]
[1735505173895,8.53e-05,93963.0,93938.0,0.32434969]
[1735505174098,8.53e-05,93963.0,93939.0,0.0754]
[1735505174323,8.53e-05,93963.0,93951.0,0.12523307]
[1735505175295,0.06246693,93975.0,93944.0,0.54466226]
[1735505175518,0.00015238,93969.0,93945.0,0.19266752]
[1735505175839,0.00015238,93969.0,93945.0,0.0886812]
[1735505176068,0.00015238,93969.0,93946.0,0.00106415]
[1735505176682,0.00015238,93969.0,93947.0,0.74864858]
[1735505176924,0.00015238,93969.0,93954.0,0.03753307]
[1735505177128,0.00015238,93969.0,93955.0,0.01385971]
[1735505177516,0.00015238,93969.0,93955.0,0.01365971]
[1735505178068,0.00015238,93969.0,93954.0,0.003]
[1735505178267,0.00015238,93969.0,93955.0,0.1225]
[1735505178490,0.00015238,93969.0,93955.0,0.0471]
[1735505178701,0.00015238,93969.0,93956.0,0.0754]
[1735505179090,5.918e-05,93969.0,93956.0,0.0754]
[1735505179295,5.918e-05,93969.0,93956.0,0.0752]
[1735505180479,5.918e-05,93969.0,93957.0,0.54466226]
[1735505181579,0.06246693,93968.0,93957.0,0.54466226]
[1735505182759,0.06246693,93968.0,93957.0,0.55566226]
[1735505183185,0.06246693,93968.0,93957.0,0.54466226]
[1735505183371,0.06246693,93968.0,93957.0,0.54446226]
[1735505183684,5.918e-05,93969.0,93958.0,0.54446226]
[1735505184921,5.918e-05,93969.0,93958.0,0.54426226]
[1735505185326,5.918e-05,93969.0,93959.0,0.00106409]
[1735505185819,5.918e-05,93969.0,93958.0,0.54426226]
[1735505186043,5.918e-05,93969.0,93958.0,0.54406226]
[1735505186467,5.918e-05,93969.0,93958.0,0.55606226]
[1735505186694,5.918e-05,93969.0,93959.0,0.54406226]
[1735505187005,5.918e-05,93969.0,93959.0,0.54386226]
[1735505187214,5.918e-05,93969.0,93960.0,0.00106414]
[1735505187869,5.918e-05,93969.0,93959.0,0.54386226]
[1735505187870,0.00014448,93969.0,93959.0,0.54386226]
[1735505188065,0.00014448,93969.0,93960.0,0.06194329]
[1735505188275,0.00014448,93969.0,93960.0,0.06174329]
[1735505188762,0.00014448,93969.0,93961.0,0.0471]
[1735505189523,0.00014448,93969.0,93963.0,0.54386226]
[1735505190740,0.00014448,93969.0,93963.0,0.54686226]
[1735505190953,0.00014448,93969.0,93964.0,0.02408088]
[1735505192506,0.00014448,93969.0,93964.0,0.02388088]
[1735505192712,0.01669349,93990.0,93965.0,0.54371778]
[1735505192890,0.01669349,93990.0,93966.0,0.0825]
[1735505194114,0.01669349,93990.0,93966.0,0.0823]
[1735505194316,0.06246693,93992.0,93967.0,0.0767542]
[1735505195246,0.06246693,93992.0,93967.0,0.0765542]
[1735505195442,0.06246693,93992.0,93966.0,0.0823]
[1735505195854,0.06246693,93990.0,93966.0,0.0823]
[1735505196061,0.06246693,93990.0,93967.0,0.00106402]
[1735505196401,0.06246693,93992.0,93967.0,0.00106402]
[1735505196565,0.06246693,93992.0,93967.0,0.00086402]
[1735505196716,0.00023765,94000.0,93968.0,0.07066627]
[1735505196915,0.06246693,93988.0,93969.0,0.00086401]
[1735505197316,0.06246693,93988.0,93966.0,0.0823]
[1735505197576,0.06246693,93988.0,93966.0,0.0783]
[1735505198298,0.01669322,93992.0,93970.0,0.54371778]
[1735505198628,0.07916015,93992.0,93971.0,0.00106394]
[1735505199401,8.52e-05,93988.0,93971.0,0.00106394]
[1735505200631,8.52e-05,93988.0,93971.0,0.00206394]
[1735505200832,8.52e-05,93988.0,93971.0,0.00186394]
[1735505201037,8.52e-05,93988.0,93970.0,0.54371778]
[1735505201193,0.06255213,93988.0,93970.0,0.54371778]
[1735505201571,0.06255213,93988.0,93971.0,0.003]
[1735505201872,0.06246693,93987.0,93972.0,0.54371778]
[1735505202001,0.0471,93986.0,93972.0,0.54371778]
[1735505202425,0.06246693,93987.0,93972.0,0.54371778]
[1735505203175,8.52e-05,93988.0,93972.0,0.54371778]
[1735505203176,0.06246693,93980.0,93972.0,0.54371778]
[1735505203601,0.06246693,93976.0,93972.0,0.54371778]
[1735505203946,0.06246693,93976.0,93972.0,0.54771778]
[1735505204164,0.06246693,93976.0,93972.0,0.54371778]
[1735505204560,8.52e-05,93988.0,93974.0,0.59021778]
[1735505206784,8.52e-05,93988.0,93974.0,0.59121778]
[1735505207137,8.52e-05,93988.0,93975.0,0.54371778]
[1735505208132,0.00022285,94000.0,93976.0,0.00092192]
[1735505209155,0.00022285,94000.0,93992.0,0.0465]
[1735505209352,0.00122285,94000.0,93993.0,0.07106509]
[1735505209796,0.00122285,94000.0,93992.0,0.0465]
[1735505210972,0.00022285,94000.0,93993.0,0.007]
[1735505211345,0.00022285,94000.0,93993.0,0.002]
[1735505213645,0.00022285,94000.0,93995.0,0.03753307]
[1735505214771,0.00022285,94000.0,93995.0,0.04653307]
[1735505215714,0.00022285,94000.0,93996.0,0.00106376]
[1735505216076,0.00022285,94000.0,93996.0,0.54371778]
[1735505216280,0.00022285,94000.0,93998.0,0.0829]
[1735505216487,0.00022285,94000.0,93999.0,0.00106361]
[1735505218329,0.00022285,94000.0,93999.0,0.78516771]
[1735505218557,0.00022285,94000.0,93999.0,0.7861041]
[1735505218766,0.00022285,94000.0,93999.0,0.89009042]
[1735505219310,0.00022285,94000.0,93999.0,0.88309042]
[1735505219512,0.00022285,94000.0,93999.0,1.02062349]
[1735505219737,0.0142492,94027.0,94004.0,0.082]
[1735505219948,0.01475694,94027.0,94006.0,0.082]
[1735505220370,0.01475694,94027.0,94008.0,0.082]
[1735505220498,0.01475694,94027.0,94009.0,0.10398632]
[1735505221503,0.01475694,94027.0,94010.0,0.00106339]
[1735505221751,0.01475694,94027.0,94010.0,0.10504971]
[1735505221910,0.01475694,94027.0,94011.0,0.03112642]
[1735505223230,0.01475694,94027.0,94012.0,0.00106341]
[1735505223642,0.01475694,94027.0,94002.0,0.54329493]
[1735505223643,0.0486,94025.0,94002.0,0.54329493]
[1735505223911,0.01668468,94024.0,94011.0,0.002]
[1735505224148,0.07449359,94049.0,94012.0,0.54329493]
[1735505224349,0.00015223,94031.0,94014.0,0.54329493]
[1735505224494,0.00015223,94031.0,94002.0,0.03995541]
[1735505224495,0.834051,94030.0,94015.0,0.54329493]
[1735505224703,0.765729,94030.0,94014.0,0.54329493]
[1735505224879,0.671758,94030.0,94014.0,0.54329493]
[1735505225081,0.416537,94030.0,94014.0,0.54329493]
[1735505225266,0.478473,94030.0,94014.0,0.54329493]
[1735505225691,0.53851759,94030.0,94011.0,0.002]
[1735505225894,0.386645,94029.0,93996.0,0.54240906]
[1735505226122,0.386645,94029.0,93997.0,0.05823645]
[1735505226551,0.06004459,94030.0,93997.0,0.05823645]
[1735505226719,0.06004459,94030.0,93996.0,0.54240906]
[1735505226720,0.06004459,94029.0,93996.0,0.54240906]
[1735505227101,2.18188759,94028.0,93997.0,0.54240906]
[1735505227507,1.671384,94027.0,93997.0,0.54240906]
[1735505227720,1.671384,94027.0,93997.0,0.53396994]
[1735505228688,0.01668816,94020.0,93997.0,0.53396994]
[1735505228897,0.574652,94019.0,93997.0,0.53396994]
[1735505230379,0.357844,94019.0,93997.0,0.53396994]
[1735505230549,0.585327,94019.0,93997.0,0.53396994]
[1735505230756,0.22969,94018.0,93997.0,0.53396994]
[1735505230943,0.22969,94018.0,93998.0,0.05339699]
[1735505231582,0.413766,94019.0,93998.0,0.05339699]
[1735505231744,0.415523,94018.0,93999.0,0.53396994]
[1735505232492,0.418523,94018.0,93999.0,0.53396994]
[1735505232820,1.107609,94017.0,93999.0,0.53396994]
[1735505233021,0.816037,94017.0,93999.0,0.53396994]
[1735505233155,0.292704,94016.0,93999.0,0.53396994]
[1735505233360,0.275616,94017.0,93999.0,0.53396994]
[1735505233564,0.146384,94017.0,93999.0,0.53396994]
[1735505234110,0.002,94017.0,93999.0,0.53396994]
[1735505234312,0.146384,94016.0,93999.0,0.53396994]
[1735505234753,0.146384,94016.0,93991.0,0.53396994]
[1735505235290,0.146384,94016.0,93992.0,0.03995541]
[1735505235509,0.23825267,94019.0,93992.0,0.03995541]
[1735505235712,0.199787,94018.0,93999.0,0.0001704]
[1735505236142,0.120754,94017.0,94001.0,0.03995541]
[1735505236347,8.52e-05,94027.0,93999.0,0.0001704]
[1735505236348,0.23825267,94022.0,94007.0,0.03995541]
[1735505236552,0.002,94017.0,94007.0,0.03995541]
[1735505236912,0.003,94016.0,94007.0,0.03995541]
[1735505237117,0.23825267,94025.0,94007.0,0.03995541]
[1735505237356,0.002,94017.0,94007.0,0.03995541]
[1735505237763,0.002,94017.0,94008.0,0.53396994]
[1735505237990,0.01668814,94026.0,94008.0,0.53396994]
[1735505238556,0.01668814,94026.0,94010.0,0.03995541]
[1735505238879,0.01668814,94026.0,94011.0,0.06536254]
[1735505239259,0.01668814,94026.0,94019.0,0.03995541]
[1735505239463,0.01668814,94026.0,94020.0,0.03995541]
[1735505241118,0.01668814,94026.0,94020.0,0.04095541]
[1735505243168,0.01668814,94026.0,94020.0,0.001]
[1735505243796,0.01668814,94026.0,94021.0,0.53396994]
[1735505244196,8.52e-05,94027.0,94021.0,0.53396994]
[1735505245253,8.52e-05,94027.0,94021.0,0.53496994]
[1735505246646,8.52e-05,94027.0,94022.0,0.53396994]
[1735505247715,8.52e-05,94027.0,94022.0,0.53496994]
[1735505247918,0.01455753,94027.0,94022.0,0.53496994]
[1735505248235,8.52e-05,94027.0,94022.0,0.53496994]
[1735505248587,8.52e-05,94027.0,94022.0,0.53396994]
[1735505248795,0.11558048,94038.0,94022.0,0.53396994]
[1735505248997,0.002,94027.0,94022.0,0.53396994]
[1735505249812,0.002,94027.0,94003.0,0.53396994]
[1735505249966,0.005,94027.0,94004.0,0.07120107]
[1735505250339,0.01668667,94028.0,94004.0,0.07120107]
[1735505250568,0.342855,94027.0,94004.0,0.07120107]
[1735505250859,0.344855,94027.0,94004.0,0.07120107]
[1735505250983,0.002,94027.0,94004.0,0.07120107]
[1735505251194,0.005,94027.0,94005.0,0.07835492]
[1735505251403,0.003,94027.0,94005.0,0.07835492]
[1735505252699,0.003,94027.0,94006.0,0.53396994]
[1735505252857,0.003,94027.0,94007.0,0.0785]
[1735505253422,0.01868667,94028.0,94007.0,0.0785]
[1735505253582,0.328769,94027.0,94007.0,0.0785]
[1735505253759,0.01668667,94028.0,94007.0,0.0785]
[1735505253964,0.325769,94027.0,94007.0,0.0785]
[1735505254506,0.005,94027.0,94007.0,0.0785]
[1735505254707,0.002,94027.0,94007.0,0.0785]
[1735505254931,0.0468,94040.0,94007.0,0.0785]
[1735505255110,0.002,94027.0,94007.0,0.0785]
[1735505255286,0.004,94027.0,94007.0,0.0785]
[1735505255703,0.004,94027.0,94007.0,0.61246994]
[1735505256756,0.002,94027.0,94007.0,0.61246994]
[1735505256956,0.002,94027.0,94009.0,0.1]
[1735505257101,0.002,94027.0,94015.0,0.0785]
[1735505257299,0.28556243,94043.0,94015.0,0.0785]
[1735505257505,0.01668612,94039.0,94015.0,0.0785]
[1735505257723,0.257408,94038.0,94015.0,0.0785]
[1735505257918,0.002,94027.0,94015.0,0.0785]
[1735505258461,0.002,94027.0,94016.0,0.0254647]
[1735505258657,0.01868612,94039.0,94015.0,0.0785]
[1735505258858,0.257408,94038.0,94015.0,0.0785]
[1735505259820,0.01668612,94039.0,94015.0,0.0785]
[1735505260062,0.01668612,94039.0,94017.0,0.0785]
[1735505260251,8.52e-05,94038.0,94018.0,0.02275]
[1735505261387,0.01577132,94039.0,94018.0,0.02275]
[1735505261907,0.004,94038.0,94019.0,0.0785]
[1735505262122,0.004,94038.0,94026.0,0.1]
[1735505262317,0.006,94038.0,94028.0,0.0785]
[1735505262735,0.006,94038.0,94030.0,0.1]
[1735505262873,0.004,94038.0,94032.0,0.0785]
[1735505263089,0.002,94038.0,94034.0,0.0785]
[1735505263278,0.002,94038.0,94035.0,0.07124699]
[1735505263870,0.005,94038.0,94035.0,0.07124699]
[1735505264321,0.002,94038.0,94035.0,0.07124699]
[1735505264530,0.003,94038.0,94035.0,0.07124699]
[1735505264735,0.005,94038.0,94034.0,0.0785]
[1735505265460,0.003,94038.0,94034.0,0.0785]
[1735505266225,0.003,94038.0,93991.0,0.09530512]
[1735505266226,0.003,94038.0,94022.0,0.0818]
[1735505266838,0.0002,94049.0,94022.0,0.0818]
[1735505267166,0.005,94038.0,94022.0,0.0818]
[1735505267355,0.01668504,94036.0,94022.0,0.0818]
[1735505267731,0.01668504,94036.0,94029.0,0.1]
[1735505267943,0.002,94038.0,94031.0,0.0482]
[1735505268146,0.005,94038.0,94031.0,0.0482]
[1735505268339,0.002,94038.0,94032.0,0.1]
[1735505268539,0.28556243,94046.0,94032.0,0.1]
[1735505268745,0.28556243,94046.0,94033.0,0.0818]
[1735505268943,0.0042,94049.0,94033.0,0.0818]
[1735505269523,0.0002,94049.0,94033.0,0.0818]
[1735505269729,0.004,94046.0,94033.0,0.0818]
[1735505270303,0.0002,94049.0,94033.0,0.0818]
[1735505270505,0.002,94036.0,94033.0,0.0818]
[1735505270733,0.0002,94049.0,94033.0,0.0818]
[1735505271114,0.006,94046.0,94033.0,0.0819]
[1735505271906,0.0042,94049.0,94033.0,0.1809]
[1735505272304,0.002,94036.0,94033.0,0.1809]
[1735505273710,0.002,94036.0,94033.0,0.1819]
[1735505274272,0.002,94036.0,94033.0,0.1809]
[1735505274480,0.004,94036.0,94033.0,0.1809]
[1735505275836,0.004,94036.0,94034.0,0.0818]
[1735505276727,0.002,94036.0,94035.0,0.1]
[1735505276980,0.0002,94049.0,94036.0,0.0818]
[1735505277175,0.0002,94049.0,94036.0,0.0808]
[1735505277950,0.0002,94049.0,94036.0,0.0798]
[1735505278153,0.0002,94049.0,94037.0,0.07529699]
[1735505278364,0.0002,94049.0,94040.0,0.1]
[1735505278808,0.0062,94049.0,94040.0,0.1]
[1735505279569,0.0102,94049.0,94040.0,0.1]
[1735505279975,0.0062,94049.0,94047.0,0.1]
[1735505280712,0.0002,94049.0,94041.0,0.0468]
[1735505280929,0.0042,94049.0,94041.0,0.0468]
[1735505281126,0.0002,94049.0,94042.0,0.0774]
[1735505281579,0.0042,94049.0,94042.0,0.0774]
[1735505281763,0.0042,94049.0,94043.0,0.07581699]
[1735505281961,0.0002,94049.0,94043.0,0.07581699]
[1735505282190,0.0002,94049.0,94047.0,0.1]
[1735505282341,0.0012,94049.0,94047.0,0.1]
[1735505282542,0.0012,94049.0,94048.0,0.0774]
[1735505283018,0.0002,94049.0,94048.0,0.0774]
[1735505283209,0.0012,94049.0,94048.0,0.0774]
[1735505283411,0.0012,94049.0,94048.0,0.1774]
[1735505284866,0.0002,94049.0,94048.0,0.1774]
[1735505285139,0.0012,94049.0,94048.0,0.1774]
[1735505285580,0.0012,94049.0,94048.0,0.0774]
[1735505285754,0.0012,94049.0,94044.0,0.53396994]
[1735505285899,0.0012,94049.0,94041.0,0.0774]
[1735505286101,0.0012853,94049.0,94041.0,0.0774]
[1735505286728,0.0012853,94049.0,94037.0,0.0001706]
[1735505287270,0.0002853,94049.0,94037.0,0.0001706]
[1735505288581,0.0012853,94049.0,94037.0,0.0001706]
[1735505289259,0.0002853,94049.0,94037.0,0.0001706]
[1735505289428,0.0012853,94049.0,94037.0,0.0001706]
[1735505290066,0.0012853,94049.0,94026.0,0.07479318]
[1735505290067,0.0225853,94049.0,94026.0,0.07479318]
[1735505290202,0.0225853,94049.0,94026.0,0.16782341]
[1735505291006,0.0225853,94049.0,94026.0,0.06782341]
[1735505291231,0.0225853,94049.0,94026.0,0.16782341]